[Event "56th Biel Festival MTO 2023"]
[White "Meshkovs,Nikita"]
[Black "Pham,Le Thao Nguyen"]
[Site "Biel"]
[Round "6.12"]
[Annotator "ChessBase"]
[Result "1-0"]
[Date "2023.07.24"]
[WhiteElo "2565"]
[BlackElo "2369"]
[PlyCount "125"]
[TimeControl "60"]

1. c4 {[%emt 0:0:0]} Nf6 {[%emt 0:0:0]} 2. Nc3 {[%emt 0:0:0]} e6 {[%emt 0:0:0]} 3. Nf3 {[%emt 0:0:0]} Bb4 {[%emt 0:0:0]} 4. Qc2 {[%emt 0:0:0]} c5 {[%emt 0:0:0]} 5. a3 {[%emt 0:0:0]} Ba5 {[%emt 0:0:22]} 6. Na4 {[%emt 0:6:41]} d6 {[%emt 0:2:34]} 7. g3 {[%emt 0:8:16]} Nc6 {[%emt 0:3:20]} 8. Bg2 {[%emt 0:0:28]} e5 {[%emt 0:2:56]} 9. e3 {[%emt 0:1:42]} h6 {[%emt 0:2:13]} 10. O-O {[%emt 0:2:27]} O-O {[%emt 0:1:0]} 11. d3 {[%emt 0:2:21]} Qe7 {[%emt 0:2:34]} 12. Nd2 {[%emt 0:0:41]} Bd7 {[%emt 0:9:38]} 13. Nc3 {[%emt 0:5:42]} Bxc3 {[%emt 0:4:20]} 14. Qxc3 {[%emt 0:1:43]} a5 {[%emt 0:0:49]} 15. b3 {[%emt 0:3:3]} Rfb8 {[%emt 0:1:42]} 16. a4 {[%emt 0:6:2]} Bf5 {[%emt 0:5:27]} 17. Bb2 {[%emt 0:2:21]} Qd7 {[%emt 0:1:5]} 18. f4 {[%emt 0:14:25]} Re8 {[%emt 0:5:49]} 19. Rae1 {[%emt 0:4:57]} Nb4 {[%emt 0:12:22]} 20. e4 {[%emt 0:0:27]} Bh3 {[%emt 0:0:58]} 21. Nf3 {[%emt 0:2:24]} Bxg2 {[%emt 0:0:46]} 22. Kxg2 {[%emt 0:0:9]} Nc6 {[%emt 0:1:2]} 23. Qd2 {[%emt 0:4:57]} Ra6 {[%emt 0:9:51]} 24. Bc3 {[%emt 0:2:24]} Nd4 {[%emt 0:5:21]} 25. Rb1 {[%emt 0:1:10]} Qc7 {[%emt 0:4:47]} 26. Nh4 {[%emt 0:0:35]} Nh7 {[%emt 0:0:35]} 27. Kg1 {[%emt 0:2:48]} b6 {[%emt 0:7:8]} 28. Ng2 {[%emt 0:0:22]} Ra7 {[%emt 0:0:21]} 29. Ne3 {[%emt 0:0:8]} Qd8 {[%emt 0:0:25]} 30. Nd5 {[%emt 0:1:51]} Rb7 {[%emt 0:2:35]} 31. Qg2 {[%emt 0:4:6]} Qc8 {[%emt 0:4:30]} 32. h4 {[%emt 0:1:26]} Qg4 {[%emt 0:3:8]} 33. Bxd4 {[%emt 0:4:40]} exd4 {[%emt 0:1:58]} 34. f5 {[%emt 0:1:2]} Re5 {[%emt 0:1:27]} 35. Rf4 {[%emt 0:9:10]} Qh5 {[%emt 0:0:13]} 36. f6 {[%emt 0:0:9]} g5 {[%emt 0:1:39]} 37. g4 {[%emt 0:8:12]} Qxh4 {[%emt 0:1:14]} 38. Rf3 {[%emt 0:0:1]} h5 {[%emt 0:0:29]} 39. Rh3 {[%emt 0:0:2]} Qxg4 {[%emt 0:0:13]} 40. Qxg4 {[%emt 0:0:2]} hxg4 {[%emt 0:0:10]} 41. Rh6 {[%emt 0:30:5]} Nf8 {[%emt 0:0:0]} 42. Kg2 {[%emt 0:0:0]} Ng6 {[%emt 0:0:0]} 43. Rbh1 {[%emt 0:0:0]} Rxd5 {[%emt 0:0:0]} 44. cxd5 {[%emt 0:0:0]} b5 {[%emt 0:0:0]} 45. Kg3 {[%emt 0:0:0]} bxa4 {[%emt 0:0:0]} 46. bxa4 {[%emt 0:0:0]} Rb3 {[%emt 0:0:46]} 47. Kxg4 {[%emt 0:0:0]} Rb2 {[%emt 0:12:29]} 48. e5 {[%emt 0:0:0]} Nxe5+ {[%emt 0:3:20]} 49. Kxg5 {[%emt 0:0:0]} Rg2+ {[%emt 0:0:46]} 50. Kf4 {[%emt 0:0:0]} Ng6+ {[%emt 0:0:56]} 51. Kf3 {[%emt 0:0:0]} Rb2 {[%emt 0:6:21]} 52. Rh7 {[%emt 0:0:0]} Rd2 {[%emt 0:8:58]} 53. Rg7+ {[%emt 0:0:0]} Kf8 {[%emt 0:0:8]} 54. Rb1 {[%emt 0:0:0]} Rxd3+ {[%emt 0:2:54]} 55. Kf2 {[%emt 0:0:0]} Re3 {[%emt 0:1:17]} 56. Rb7 {[%emt 0:0:0]} Nf4 {[%emt 0:0:28]} 57. Rgxf7+ {[%emt 0:0:0]} Ke8 {[%emt 0:0:7]} 58. Rh7 {[%emt 0:0:6]} Nd3+ {[%emt 0:1:5]} 59. Kg1 {[%emt 0:0:16]} Re1+ {[%emt 0:0:32]} 60. Kh2 {[%emt 0:0:7]} Re2+ {[%emt 0:0:12]} 61. Kg3 {[%emt 0:0:1]} Re3+ {[%emt 0:0:19]} 62. Kh4 {[%emt 0:0:2]} Re4+ {[%emt 0:0:44]} 63. Kg5 {[%emt 0:0:2]} 1-0

[Event "56th Biel Festival MTO 2023"]
[White "Jain Kashish Manoj"]
[Black "Peng,Xiongjian"]
[Site "Biel"]
[Round "6.13"]
[Annotator "ChessBase"]
[Result "0-1"]
[Date "2023.07.24"]
[WhiteElo "2375"]
[BlackElo "2489"]
[PlyCount "66"]
[TimeControl "60"]

1. e4 {[%emt 0:0:0]} c5 {[%emt 0:0:0]} 2. Nf3 {[%emt 0:0:0]} d6 {[%emt 0:0:0]} 3. d4 {[%emt 0:0:0]} cxd4 {[%emt 0:0:0]} 4. Qxd4 {[%emt 0:0:0]} Nc6 {[%emt 0:0:0]} 5. Bb5 {[%emt 0:0:0]} e5 {[%emt 0:0:0]} 6. Qd3 {[%emt 0:0:0]} Be7 {[%emt 0:0:0]} 7. O-O {[%emt 0:0:0]} Nf6 {[%emt 0:0:0]} 8. Bg5 {[%emt 0:4:17]} O-O {[%emt 0:0:0]} 9. Nc3 {[%emt 0:5:36]} Bg4 {[%emt 0:5:23]} 10. Bxf6 {[%emt 0:6:15]} Bxf6 {[%emt 0:0:43]} 11. Nd5 {[%emt 0:0:8]} Kh8 {[%emt 0:30:32]} 12. c3 {[%emt 0:6:3]} Ne7 {[%emt 0:8:21]} 13. Nxf6 {[%emt 0:12:36]} gxf6 {[%emt 0:0:6]} 14. Nh4 {[%emt 0:9:33]} d5 {[%emt 0:5:13]} 15. h3 {[%emt 0:14:3]} Bh5 {[%emt 0:0:22]} 16. exd5 {[%emt 0:4:1]} Nxd5 {[%emt 0:3:44]} 17. g3 {[%emt 0:6:49]} a6 {[%emt 0:4:24]} 18. Ba4 {[%emt 0:12:48]} Nb6 {[%emt 0:2:39]} 19. Qf5 {[%emt 0:0:45]} Bg6 {[%emt 0:1:33]} 20. Nxg6+ {[%emt 0:1:26]} hxg6 {[%emt 0:1:25]} 21. Qe4 {[%emt 0:1:6]} Qc8 {[%emt 0:3:31]} 22. Bb3 {[%emt 0:4:1]} Qxh3 {[%emt 0:6:43]} 23. Qxb7 {[%emt 0:0:17]} Kg7 {[%emt 0:0:14]} 24. Rfd1 {[%emt 0:1:32]} Rab8 {[%emt 0:0:18]} 25. Qg2 {[%emt 0:0:52]} Qg4 {[%emt 0:0:8]} 26. Re1 {[%emt 0:5:49]} a5 {[%emt 0:2:34]} 27. Re4 {[%emt 0:2:38]} Qg5 {[%emt 0:0:25]} 28. Qf3 {[%emt 0:2:30]} Rh8 {[%emt 0:8:4]} 29. Rd1 {[%emt 0:1:14]} Rh5 {[%emt 0:0:14]} 30. Rg4 {[%emt 0:0:38]} Qh6 {[%emt 0:0:42]} 31. Rd6 {[%emt 0:0:30]} f5 {[%emt 0:0:29]} 32. Bxf7 {[%emt 0:0:31]} Qc1+ {[%emt 0:1:0]} 33. Rd1 {[%emt 0:0:7]} fxg4 {[%emt 0:0:9]} 0-1

[Event "56th Biel Festival MTO 2023"]
[White "Bharath Subramaniyam H"]
[Black "Dotzer,Lukas"]
[Site "Biel"]
[Round "6.14"]
[Annotator "ChessBase"]
[Result "0-1"]
[Date "2023.07.24"]
[WhiteElo "2488"]
[BlackElo "2369"]
[PlyCount "84"]
[TimeControl "60"]

1. e4 {[%emt 0:0:0]} c5 {[%emt 0:0:0]} 2. Nf3 {[%emt 0:0:0]} e6 {[%emt 0:0:0]} 3. d4 {[%emt 0:0:0]} cxd4 {[%emt 0:0:0]} 4. Nxd4 {[%emt 0:0:0]} Nc6 {[%emt 0:0:0]} 5. Bf4 {[%emt 0:0:0]} d6 {[%emt 0:0:0]} 6. Nxc6 {[%emt 0:0:0]} bxc6 {[%emt 0:0:0]} 7. c4 {[%emt 0:0:0]} Rb8 {[%emt 0:0:0]} 8. Qc2 {[%emt 0:0:0]} c5 {[%emt 0:3:15]} 9. Nc3 {[%emt 0:0:0]} Ne7 {[%emt 0:2:17]} 10. O-O-O {[%emt 0:0:0]} Nc6 {[%emt 0:1:8]} 11. e5 {[%emt 0:0:0]} g5 {[%emt 0:2:49]} 12. Be3 {[%emt 0:6:2]} Nd4 {[%emt 0:0:30]} 13. Rxd4 {[%emt 0:4:40]} cxd4 {[%emt 0:0:7]} 14. Bxd4 {[%emt 0:0:6]} Bg7 {[%emt 0:0:59]} 15. Bxa7 {[%emt 0:0:21]} Rb7 {[%emt 0:3:48]} 16. Bd4 {[%emt 0:0:43]} dxe5 {[%emt 0:6:12]} 17. Bc5 {[%emt 0:8:40]} Qa5 {[%emt 0:8:42]} 18. Qa4+ {[%emt 0:14:31]} Qxa4 {[%emt 0:0:22]} 19. Nxa4 {[%emt 0:0:11]} Bd7 {[%emt 0:10:34]} 20. Nb6 {[%emt 0:12:31]} Bf8 {[%emt 0:13:36]} 21. Be3 {[%emt 0:22:57]} Bc6 {[%emt 0:6:30]} 22. c5 {[%emt 0:1:37]} f5 {[%emt 0:6:20]} 23. b4 {[%emt 0:3:1]} Rxb6 {[%emt 0:6:16]} 24. cxb6 {[%emt 0:0:25]} Bxb4 {[%emt 0:0:13]} 25. f3 {[%emt 0:8:34]} f4 {[%emt 0:12:1]} 26. Bf2 {[%emt 0:6:54]} Ke7 {[%emt 0:1:55]} 27. Ba6 {[%emt 0:2:58]} e4 {[%emt 0:8:9]} 28. fxe4 {[%emt 0:2:28]} Bxe4 {[%emt 0:3:3]} 29. Kb2 {[%emt 0:2:5]} Rb8 {[%emt 0:4:16]} 30. Rc1 {[%emt 0:3:10]} Bxg2 {[%emt 0:1:52]} 31. b7 {[%emt 0:2:23]} Bd6 {[%emt 0:0:32]} 32. Rc8 {[%emt 0:1:19]} Rxb7+ {[%emt 0:0:25]} 33. Bxb7 {[%emt 0:0:0]} Bxb7 {[%emt 0:0:10]} 34. Rg8 {[%emt 0:0:13]} Be5+ {[%emt 0:0:52]} 35. Kc2 {[%emt 0:0:35]} Kf6 {[%emt 0:0:33]} 36. a4 {[%emt 0:0:54]} Bc7 {[%emt 0:0:16]} 37. Rf8+ {[%emt 0:1:5]} Kg7 {[%emt 0:0:43]} 38. Bc5 {[%emt 0:0:32]} Bb6 {[%emt 0:0:25]} 39. Bd6 {[%emt 0:0:29]} f3 {[%emt 0:0:24]} 40. Kd1 {[%emt 0:0:32]} f2 {[%emt 0:0:31]} 41. a5 {[%emt 0:0:0]} Ba7 {[%emt 0:0:0]} 42. Be7 {[%emt 0:1:40]} Ba6 {[%emt 0:0:0]} 0-1

[Event "56th Biel Festival MTO 2023"]
[White "Besou,Hussain"]
[Black "Sanchez Alvarez,Roberto Carlos"]
[Site "Biel"]
[Round "6.15"]
[Annotator "ChessBase"]
[Result "0-1"]
[Date "2023.07.24"]
[WhiteElo "2348"]
[BlackElo "2444"]
[PlyCount "66"]
[TimeControl "60"]

1. d4 {[%emt 0:0:0]} Nf6 {[%emt 0:0:0]} 2. c4 {[%emt 0:0:0]} e6 {[%emt 0:0:0]} 3. Nc3 {[%emt 0:0:0]} d5 {[%emt 0:0:0]} 4. Nf3 {[%emt 0:0:0]} Bb4 {[%emt 0:0:0]} 5. Qa4+ {[%emt 0:0:0]} Nc6 {[%emt 0:0:0]} 6. e3 {[%emt 0:0:0]} O-O {[%emt 0:0:0]} 7. Bd2 {[%emt 0:0:0]} Re8 {[%emt 0:0:0]} 8. Qc2 {[%emt 0:0:0]} Bf8 {[%emt 0:0:0]} 9. Be2 {[%emt 0:0:0]} a6 {[%emt 0:0:0]} 10. O-O {[%emt 0:0:0]} dxc4 {[%emt 0:0:0]} 11. Bxc4 {[%emt 0:0:0]} b5 {[%emt 0:0:0]} 12. Be2 {[%emt 0:0:0]} Bb7 {[%emt 0:0:0]} 13. Rad1 {[%emt 0:5:46]} e5 {[%emt 0:5:4]} 14. dxe5 {[%emt 0:8:55]} Nxe5 {[%emt 0:0:49]} 15. e4 {[%emt 0:4:2]} Ng6 {[%emt 0:12:43]} 16. Bg5 {[%emt 0:15:40]} Bd6 {[%emt 0:1:3]} 17. Nd5 {[%emt 0:5:18]} Bxd5 {[%emt 0:1:32]} 18. Rxd5 {[%emt 0:0:50]} h6 {[%emt 0:0:27]} 19. Bxf6 {[%emt 0:0:20]} Qxf6 {[%emt 0:0:3]} 20. g3 {[%emt 0:0:12]} Qe6 {[%emt 0:14:9]} 21. Nd2 {[%emt 0:16:13]} Bf4 {[%emt 0:16:30]} 22. Nb3 {[%emt 0:9:46]} Rad8 {[%emt 0:0:51]} 23. Nc5 {[%emt 0:7:4]} Qc6 {[%emt 0:0:28]} 24. Rxd8 {[%emt 0:7:30]} Rxd8 {[%emt 0:0:2]} 25. gxf4 {[%emt 0:0:11]} Nxf4 {[%emt 0:1:18]} 26. Bf3 {[%emt 0:0:11]} Rd3 {[%emt 0:5:33]} 27. Bg4 {[%emt 0:9:36]} h5 {[%emt 0:16:20]} 28. Bf5 {[%emt 0:2:39]} g6 {[%emt 0:0:2]} 29. Rc1 {[%emt 0:3:13]} Rd4 {[%emt 0:0:39]} 30. Bd7 {[%emt 0:0:39]} Qf6 {[%emt 0:5:25]} 31. Kh1 {[%emt 0:2:30]} Rc4 {[%emt 0:3:8]} 32. Qd2 {[%emt 0:0:51]} Ne2 {[%emt 0:0:1]} 33. Kg2 {[%emt 0:3:25]} Rxc1 {[%emt 0:1:15]} 0-1

[Event "56th Biel Festival MTO 2023"]
[White "Weishaeutel,Moritz"]
[Black "Aarav Dengla"]
[Site "Biel"]
[Round "6.16"]
[Annotator "ChessBase"]
[Result "1-0"]
[Date "2023.07.24"]
[WhiteElo "2442"]
[BlackElo "2343"]
[PlyCount "57"]
[TimeControl "60"]

1. e4 {[%emt 0:0:0]} c5 {[%emt 0:0:0]} 2. Nf3 {[%emt 0:0:0]} d6 {[%emt 0:0:0]} 3. d4 {[%emt 0:0:0]} cxd4 {[%emt 0:0:0]} 4. Nxd4 {[%emt 0:0:0]} Nf6 {[%emt 0:0:0]} 5. Nc3 {[%emt 0:0:0]} a6 {[%emt 0:0:0]} 6. f3 {[%emt 0:0:0]} e5 {[%emt 0:0:0]} 7. Nb3 {[%emt 0:0:0]} Be6 {[%emt 0:0:0]} 8. Be3 {[%emt 0:0:0]} Be7 {[%emt 0:0:0]} 9. Qd2 {[%emt 0:0:0]} h5 {[%emt 0:0:0]} 10. Be2 {[%emt 0:0:0]} O-O {[%emt 0:7:4]} 11. Nd5 {[%emt 0:0:0]} Nxd5 {[%emt 0:0:23]} 12. exd5 {[%emt 0:0:0]} Bf5 {[%emt 0:0:5]} 13. O-O {[%emt 0:0:0]} a5 {[%emt 0:3:4]} 14. f4 {[%emt 0:0:0]} exf4 {[%emt 0:6:20]} 15. Bxf4 {[%emt 0:0:0]} Bg6 {[%emt 0:16:2]} 16. Bd3 {[%emt 0:12:40]} Bxd3 {[%emt 0:4:5]} 17. Qxd3 {[%emt 0:0:7]} Nd7 {[%emt 0:3:18]} 18. Nd4 {[%emt 0:4:40]} Bf6 {[%emt 0:7:56]} 19. Kh1 {[%emt 0:18:37]} Qb6 {[%emt 0:10:59]} 20. Nf5 {[%emt 0:6:54]} Ne5 {[%emt 0:3:48]} 21. Bxe5 {[%emt 0:0:10]} Bxe5 {[%emt 0:18:5]} 22. Ne7+ {[%emt 0:8:3]} Kh8 {[%emt 0:0:1]} 23. Rf5 {[%emt 0:1:40]} g6 {[%emt 0:0:24]} 24. Raf1 {[%emt 0:0:34]} gxf5 {[%emt 0:14:8]} 25. Qxf5 {[%emt 0:0:14]} Qxb2 {[%emt 0:0:34]} 26. Qxh5+ {[%emt 0:1:1]} Kg7 {[%emt 0:0:1]} 27. Nf5+ {[%emt 0:0:24]} Kg8 {[%emt 0:0:25]} 28. Qg5+ {[%emt 0:0:24]} Bg7 {[%emt 0:0:47]} 29. Ne7+ {[%emt 0:0:5]} 1-0

[Event "56th Biel Festival MTO 2023"]
[White "Licznerski,Lukasz"]
[Black "Frey,Fabian"]
[Site "Biel"]
[Round "6.17"]
[Annotator "ChessBase"]
[Result "1-0"]
[Date "2023.07.24"]
[WhiteElo "2430"]
[BlackElo "2230"]
[PlyCount "143"]
[TimeControl "60"]

1. e4 {[%emt 0:0:0]} c5 {[%emt 0:0:0]} 2. Nf3 {[%emt 0:0:0]} d6 {[%emt 0:0:0]} 3. d4 {[%emt 0:1:23]} cxd4 {[%emt 0:0:0]} 4. Qxd4 {[%emt 0:0:3]} Nc6 {[%emt 0:0:0]} 5. Bb5 {[%emt 0:0:2]} Bd7 {[%emt 0:0:0]} 6. Bxc6 {[%emt 0:0:7]} Bxc6 {[%emt 0:0:0]} 7. Nc3 {[%emt 0:0:3]} Nf6 {[%emt 0:0:0]} 8. Bg5 {[%emt 0:0:8]} e6 {[%emt 0:0:0]} 9. O-O-O {[%emt 0:0:16]} Be7 {[%emt 0:0:0]} 10. Qd3 {[%emt 0:0:15]} Qa5 {[%emt 0:4:49]} 11. h4 {[%emt 0:3:28]} h6 {[%emt 0:5:8]} 12. Bd2 {[%emt 0:0:21]} Qa6 {[%emt 0:3:4]} 13. Qxa6 {[%emt 0:0:31]} bxa6 {[%emt 0:0:6]} 14. Rde1 {[%emt 0:0:12]} Rc8 {[%emt 0:11:42]} 15. Nd4 {[%emt 0:1:20]} Bb7 {[%emt 0:0:44]} 16. f3 {[%emt 0:0:38]} Nd7 {[%emt 0:3:32]} 17. Nb3 {[%emt 0:3:19]} Nb6 {[%emt 0:8:20]} 18. Be3 {[%emt 0:2:6]} O-O {[%emt 0:13:10]} 19. Rd1 {[%emt 0:13:10]} Ba8 {[%emt 0:8:51]} 20. Rd3 {[%emt 0:9:39]} Rc7 {[%emt 0:1:6]} 21. Bf4 {[%emt 0:2:56]} Nc4 {[%emt 0:2:56]} 22. Nd2 {[%emt 0:4:42]} Ne5 {[%emt 0:0:49]} 23. Bxe5 {[%emt 0:0:22]} dxe5 {[%emt 0:0:6]} 24. b3 {[%emt 0:0:14]} Rfc8 {[%emt 0:4:59]} 25. Nc4 {[%emt 0:0:19]} Bc6 {[%emt 0:10:6]} 26. a4 {[%emt 0:5:43]} Be8 {[%emt 0:2:57]} 27. Kb2 {[%emt 0:3:23]} Bb4 {[%emt 0:1:18]} 28. Rhd1 {[%emt 0:14:8]} Kf8 {[%emt 0:7:55]} 29. Rd8 {[%emt 0:14:13]} h5 {[%emt 0:0:32]} 30. R1d3 {[%emt 0:2:32]} Be7 {[%emt 0:1:52]} 31. Rxc8 {[%emt 0:0:20]} Rxc8 {[%emt 0:0:3]} 32. g3 {[%emt 0:9:56]} f6 {[%emt 0:1:2]} 33. Rd1 {[%emt 0:7:0]} Bb4 {[%emt 0:2:42]} 34. Na2 {[%emt 0:1:6]} Bc5 {[%emt 0:1:53]} 35. Rd2 {[%emt 0:0:31]} Rb8 {[%emt 0:0:42]} 36. Kc1 {[%emt 0:0:31]} Ke7 {[%emt 0:1:30]} 37. Kd1 {[%emt 0:0:5]} g5 {[%emt 0:0:55]} 38. hxg5 {[%emt 0:1:32]} fxg5 {[%emt 0:0:6]} 39. Nxe5 {[%emt 0:2:24]} Bd6 {[%emt 0:2:24]} 40. f4 {[%emt 0:0:22]} Bxe5 {[%emt 0:3:3]} 41. fxe5 {[%emt 0:30:31]} Bc6 {[%emt 0:0:0]} 42. Nc3 {[%emt 0:0:0]} a5 {[%emt 0:0:0]} 43. Rh2 {[%emt 0:0:0]} Rh8 {[%emt 0:0:0]} 44. Ke2 {[%emt 0:0:0]} Kd7 {[%emt 0:0:0]} 45. Ke3 {[%emt 0:0:0]} Kc7 {[%emt 0:3:29]} 46. Ne2 {[%emt 0:0:0]} Kb6 {[%emt 0:2:40]} 47. Nd4 {[%emt 0:0:0]} Bd7 {[%emt 0:1:21]} 48. Nf3 {[%emt 0:0:0]} g4 {[%emt 0:0:27]} 49. Ne1 {[%emt 0:0:0]} Be8 {[%emt 0:1:8]} 50. Nd3 {[%emt 0:0:0]} Kc7 {[%emt 0:2:39]} 51. Nf4 {[%emt 0:0:0]} Bf7 {[%emt 0:0:13]} 52. Rf2 {[%emt 0:0:0]} Rh7 {[%emt 0:2:27]} 53. Ng2 {[%emt 0:0:0]} Kd7 {[%emt 0:6:47]} 54. Rd2+ {[%emt 0:0:0]} Ke7 {[%emt 0:0:6]} 55. Rd6 {[%emt 0:0:0]} Rh8 {[%emt 0:0:9]} 56. Ra6 {[%emt 0:0:0]} Rc8 {[%emt 0:0:14]} 57. Rxa7+ {[%emt 0:0:0]} Ke8 {[%emt 0:0:5]} 58. Ne1 {[%emt 0:0:0]} Rc3+ {[%emt 0:0:39]} 59. Kf4 {[%emt 0:0:0]} h4 {[%emt 0:1:2]} 60. gxh4 {[%emt 0:0:0]} g3 {[%emt 0:0:12]} 61. Ra6 {[%emt 0:0:0]} Ke7 {[%emt 0:3:13]} 62. Rd6 {[%emt 0:0:0]} Bh5 {[%emt 0:0:52]} 63. Rd2 {[%emt 0:0:0]} Rc8 {[%emt 0:4:24]} 64. Kxg3 {[%emt 0:2:10]} Rg8+ {[%emt 0:0:7]} 65. Kf2 {[%emt 0:3:8]} Rg4 {[%emt 0:0:18]} 66. Ke3 {[%emt 0:0:44]} Bg6 {[%emt 0:0:39]} 67. Rd4 {[%emt 0:0:11]} Rxh4 {[%emt 0:0:9]} 68. Rc4 {[%emt 0:0:21]} Kd7 {[%emt 0:0:15]} 69. Nd3 {[%emt 0:0:4]} Ke7 {[%emt 0:0:42]} 70. Nf4 {[%emt 0:0:24]} Be8 {[%emt 0:0:19]} 71. Rc7+ {[%emt 0:0:6]} Kd8 {[%emt 0:0:31]} 72. Nxe6# {[%emt 0:0:2]} 1-0

[Event "56th Biel Festival MTO 2023"]
[White "Wessman,Richard"]
[Black "Eidelman,Gabriel"]
[Site "Biel"]
[Round "6.18"]
[Annotator "ChessBase"]
[Result "1/2-1/2"]
[Date "2023.07.24"]
[WhiteElo "2410"]
[BlackElo "2204"]
[PlyCount "100"]
[TimeControl "60"]

1. d4 {[%emt 0:0:0]} Nf6 {[%emt 0:0:0]} 2. c4 {[%emt 0:0:0]} e6 {[%emt 0:0:0]} 3. g3 {[%emt 0:0:0]} d5 {[%emt 0:0:0]} 4. Bg2 {[%emt 0:0:0]} dxc4 {[%emt 0:0:0]} 5. Nf3 {[%emt 0:0:0]} a6 {[%emt 0:0:0]} 6. O-O {[%emt 0:0:0]} Nc6 {[%emt 0:0:0]} 7. Bg5 {[%emt 0:7:29]} Be7 {[%emt 0:0:0]} 8. e3 {[%emt 0:3:37]} Bd7 {[%emt 0:0:0]} 9. Nbd2 {[%emt 0:1:45]} b5 {[%emt 0:3:1]} 10. Rc1 {[%emt 0:2:8]} Nb4 {[%emt 0:18:38]} 11. Ne5 {[%emt 0:1:11]} Rb8 {[%emt 0:3:28]} 12. b3 {[%emt 0:22:33]} Nxa2 {[%emt 0:26:55]} 13. Bc6 {[%emt 0:22:21]} Nb4 {[%emt 0:10:43]} 14. Qf3 {[%emt 0:12:48]} Nxc6 {[%emt 0:3:26]} 15. Nxc6 {[%emt 0:0:9]} Bxc6 {[%emt 0:0:9]} 16. Qxc6+ {[%emt 0:0:7]} Qd7 {[%emt 0:0:49]} 17. Qxa6 {[%emt 0:0:38]} c3 {[%emt 0:9:15]} 18. Qa7 {[%emt 0:9:48]} Qc8 {[%emt 0:4:3]} 19. Rxc3 {[%emt 0:3:29]} Nd5 {[%emt 0:0:5]} 20. Bxe7 {[%emt 0:1:12]} Nxc3 {[%emt 0:0:39]} 21. Bb4 {[%emt 0:2:22]} Nd5 {[%emt 0:3:6]} 22. Rc1 {[%emt 0:1:58]} Qb7 {[%emt 0:5:21]} 23. Qxb7 {[%emt 0:4:22]} Rxb7 {[%emt 0:0:5]} 24. Ba5 {[%emt 0:0:11]} b4 {[%emt 0:3:55]} 25. Kg2 {[%emt 0:4:1]} Kd7 {[%emt 0:4:22]} 26. Rc5 {[%emt 0:0:22]} Rhb8 {[%emt 0:1:56]} 27. e4 {[%emt 0:0:42]} Ne7 {[%emt 0:0:41]} 28. Nc4 {[%emt 0:0:27]} f6 {[%emt 0:1:43]} 29. f4 {[%emt 0:0:38]} Nc6 {[%emt 0:0:50]} 30. d5 {[%emt 0:0:28]} Nxa5 {[%emt 0:1:3]} 31. Rxa5 {[%emt 0:0:29]} Rb5 {[%emt 0:0:44]} 32. dxe6+ {[%emt 0:0:5]} Kxe6 {[%emt 0:0:8]} 33. Ra6+ {[%emt 0:0:7]} Ke7 {[%emt 0:1:7]} 34. Kf3 {[%emt 0:0:32]} Rd8 {[%emt 0:0:31]} 35. Ke3 {[%emt 0:0:10]} Rd1 {[%emt 0:0:37]} 36. Ra7 {[%emt 0:0:4]} Kd7 {[%emt 0:0:29]} 37. Ra8 {[%emt 0:0:11]} Ke7 {[%emt 0:0:33]} 38. Rg8 {[%emt 0:0:36]} Kf7 {[%emt 0:0:16]} 39. Rc8 {[%emt 0:0:2]} Rc5 {[%emt 0:0:47]} 40. Rb8 {[%emt 0:0:7]} Rh1 {[%emt 0:0:29]} 41. h4 {[%emt 0:0:0]} Rg1 {[%emt 0:0:58]} 42. Kf3 {[%emt 0:0:0]} Rd1 {[%emt 0:2:7]} 43. Rxb4 {[%emt 0:0:0]} Rd3+ {[%emt 0:0:24]} 44. Kg4 {[%emt 0:3:28]} h5+ {[%emt 0:7:30]} 45. Kh3 {[%emt 0:0:6]} c6 {[%emt 0:6:9]} 46. Rb6 {[%emt 0:23:48]} Kg6 {[%emt 0:6:30]} 47. Kh2 {[%emt 0:6:3]} Rd4 {[%emt 0:5:7]} 48. e5 {[%emt 0:1:51]} Kf5 {[%emt 0:0:5]} 49. Rb7 {[%emt 0:0:26]} fxe5 {[%emt 0:2:54]} 50. Rxg7 {[%emt 0:0:49]} Rd3 {[%emt 0:2:23]} 1/2-1/2

[Event "56th Biel Festival MTO 2023"]
[White "Huston,Gus"]
[Black "Shlyakhtenko,Robert"]
[Site "Biel"]
[Round "6.19"]
[Annotator "ChessBase"]
[Result "1/2-1/2"]
[Date "2023.07.24"]
[WhiteElo "2341"]
[BlackElo "2401"]
[PlyCount "94"]
[TimeControl "60"]

1. e4 {[%emt 0:0:0]} c5 {[%emt 0:0:0]} 2. Nf3 {[%emt 0:0:0]} e6 {[%emt 0:0:0]} 3. c3 {[%emt 0:0:0]} Nf6 {[%emt 0:0:0]} 4. e5 {[%emt 0:0:0]} Nd5 {[%emt 0:0:0]} 5. d4 {[%emt 0:0:0]} cxd4 {[%emt 0:0:0]} 6. cxd4 {[%emt 0:0:0]} d6 {[%emt 0:0:0]} 7. Bc4 {[%emt 0:0:0]} Nb6 {[%emt 0:0:0]} 8. Bg5 {[%emt 0:0:0]} Be7 {[%emt 0:0:0]} 9. Bxe7 {[%emt 0:0:0]} Qxe7 {[%emt 0:0:0]} 10. Bb3 {[%emt 0:4:43]} Bd7 {[%emt 0:4:24]} 11. Nc3 {[%emt 0:0:54]} dxe5 {[%emt 0:0:51]} 12. dxe5 {[%emt 0:3:2]} Bc6 {[%emt 0:0:29]} 13. O-O {[%emt 0:9:34]} N8d7 {[%emt 0:0:34]} 14. Nd4 {[%emt 0:14:36]} Nxe5 {[%emt 0:10:59]} 15. f4 {[%emt 0:24:15]} Ned7 {[%emt 0:8:52]} 16. f5 {[%emt 0:7:12]} O-O-O {[%emt 0:14:41]} 17. Nxc6 {[%emt 0:5:5]} bxc6 {[%emt 0:0:41]} 18. fxe6 {[%emt 0:0:8]} fxe6 {[%emt 0:0:36]} 19. Qf3 {[%emt 0:4:57]} Kb7 {[%emt 0:6:54]} 20. Rfe1 {[%emt 0:6:35]} Nc5 {[%emt 0:4:37]} 21. Ne4 {[%emt 0:1:22]} Rhf8 {[%emt 0:2:58]} 22. Nxc5+ {[%emt 0:4:38]} Qxc5+ {[%emt 0:0:6]} 23. Qe3 {[%emt 0:0:4]} Qxe3+ {[%emt 0:13:57]} 24. Rxe3 {[%emt 0:2:13]} Nd5 {[%emt 0:1:42]} 25. Rxe6 {[%emt 0:0:18]} Nf4 {[%emt 0:0:55]} 26. Re7+ {[%emt 0:0:54]} Kb6 {[%emt 0:0:5]} 27. Rd1 {[%emt 0:3:45]} Rde8 {[%emt 0:5:19]} 28. Rde1 {[%emt 0:4:26]} Rd8 {[%emt 0:0:41]} 29. g3 {[%emt 0:1:9]} Nd3 {[%emt 0:8:29]} 30. R1e2 {[%emt 0:2:58]} g5 {[%emt 0:3:41]} 31. Bc4 {[%emt 0:0:23]} g4 {[%emt 0:0:27]} 32. Rxh7 {[%emt 0:0:40]} Nc5 {[%emt 0:2:22]} 33. Rg7 {[%emt 0:0:19]} Rd4 {[%emt 0:0:11]} 34. b3 {[%emt 0:0:4]} a5 {[%emt 0:1:16]} 35. Rf7 {[%emt 0:2:15]} Rfd8 {[%emt 0:1:43]} 36. Rf4 {[%emt 0:0:8]} Rxf4 {[%emt 0:5:46]} 37. gxf4 {[%emt 0:0:3]} Rf8 {[%emt 0:0:1]} 38. Rg2 {[%emt 0:1:17]} Rxf4 {[%emt 0:0:15]} 39. Be2 {[%emt 0:0:4]} Re4 {[%emt 0:0:5]} 40. Kf2 {[%emt 0:1:40]} a4 {[%emt 0:0:40]} 41. Rxg4 {[%emt 0:0:0]} axb3 {[%emt 0:0:0]} 42. axb3 {[%emt 0:0:0]} Rxg4 {[%emt 0:0:0]} 43. Bxg4 {[%emt 0:0:0]} Kc7 {[%emt 0:0:0]} 44. Bd1 {[%emt 0:0:0]} Kd6 {[%emt 0:0:0]} 45. h4 {[%emt 0:0:0]} Ke5 {[%emt 0:0:0]} 46. h5 {[%emt 0:0:0]} Kf6 {[%emt 0:0:0]} 47. Ke3 {[%emt 0:0:0]} Kg5 {[%emt 0:0:0]} 1/2-1/2